bitfinex/quotes_BTCUSD_20210402
["timestamp","ask_amount","ask_price","bid_price","bid_amount"]
[1617327731848,1.27172442,58954.0,58953.0,0.18086923]
[1617327733250,1.27172442,58954.0,58953.0,0.14086923]
[1617327733682,1.52172442,58954.0,58953.0,0.08586923]
[1617327734280,1.51672442,58954.0,58953.0,0.08586923]
[1617327734481,1.51672442,58954.0,58953.0,0.14086923]
[1617327734883,1.51672442,58954.0,58953.0,0.08586923]
[1617327735085,1.51172442,58954.0,58953.0,0.08586923]
[1617327735682,1.51172442,58954.0,58953.0,0.13986923]
[1617327736101,2.17427024,58954.0,58953.0,0.08586923]
[1617327736302,2.17427024,58954.0,58952.0,0.00332363]
[1617327736303,2.36036024,58954.0,58952.0,0.00332363]
[1617327736500,0.2824775,58953.0,58952.0,0.00332363]
[1617327736697,0.05,58953.0,58952.0,0.00332363]
[1617327736900,0.05,58953.0,58952.0,0.01932363]
[1617327737301,0.05,58953.0,58952.0,0.10556392]
[1617327738121,1.76612842,58954.0,58952.0,0.10556392]
[1617327738322,1.76612842,58954.0,58952.0,0.01932363]
[1617327739159,1.51172442,58954.0,58952.0,0.01932363]
[1617327739357,1.51172442,58954.0,58941.0,0.05814723]
[1617327739358,0.47,58953.0,58943.0,0.004]
[1617327739555,0.47,58953.0,58952.0,0.05829936]
[1617327739955,0.47,58953.0,58952.0,0.07529936]
[1617327740156,0.47,58953.0,58952.0,0.10342283]
[1617327740757,0.47,58953.0,58952.0,0.06642283]
[1617327741158,0.47,58953.0,58952.0,0.016]
[1617327741557,0.47,58953.0,58952.0,0.10209099]
[1617327743979,0.52,58953.0,58952.0,0.10209099]
[1617327744176,0.52,58953.0,58952.0,0.08609099]
[1617327744374,0.52,58953.0,58944.0,0.05821651]
[1617327744776,0.52,58953.0,58945.0,0.017]
[1617327745175,0.52,58953.0,58946.0,0.08542922]
[1617327745376,0.52,58953.0,58947.0,0.017]
[1617327745780,0.52,58953.0,58948.0,0.08538255]
[1617327745976,0.52,58953.0,58948.0,0.08038255]
[1617327746181,0.47,58953.0,58943.0,0.05822094]
[1617327746379,0.47,58953.0,58944.0,0.08524897]
[1617327746800,0.47,58953.0,58943.0,0.05322094]
[1617327746801,0.47,58953.0,58945.0,0.017]
[1617327747000,0.47,58953.0,58946.0,0.0056]
[1617327747200,0.47,58953.0,58947.0,0.08522219]
[1617327748403,0.47,58953.0,58948.0,0.145]
[1617327748801,0.47,58953.0,58949.0,0.08517105]
[1617327749230,0.47,58953.0,58947.0,0.08520096]
[1617327749430,0.47,58953.0,58950.0,0.08519925]
[1617327749631,0.47,58953.0,58947.0,0.08518162]
[1617327750031,0.47,58953.0,58948.0,0.03]
[1617327750431,0.47,58953.0,58949.0,0.08518706]
[1617327750831,0.47,58953.0,58949.0,0.10518706]
[1617327751036,0.47,58953.0,58950.0,0.029]
[1617327751234,0.47,58953.0,58950.0,0.1142281]
[1617327751432,0.47,58953.0,58951.0,0.08522403]
[1617327751632,0.47,58953.0,58952.0,0.03]
[1617327752058,0.47,58953.0,58952.0,0.11520808]
[1617327754402,0.47,58953.0,58952.0,0.03]
[1617327754801,0.47,58953.0,58952.0,0.11520667]
[1617327755199,0.47,58953.0,58952.0,0.03]
[1617327755401,0.47,58953.0,58952.0,0.1152046]
[1617327755601,0.64,58953.0,58952.0,0.1152046]
[1617327757608,0.64,58953.0,58952.0,0.1462046]
[1617327759011,0.47,58953.0,58952.0,0.1462046]
[1617327761636,0.47,58953.0,58952.0,0.0852046]
[1617327762251,3.18565,58953.0,58952.0,0.0852046]
[1617327762450,2.16565,58953.0,58952.0,0.1452046]
[1617327762650,1.33565,58953.0,58952.0,0.1452046]
[1617327762851,1.16565,58953.0,58952.0,0.1452046]
[1617327763451,1.71872,58953.0,58952.0,0.1452046]
[1617327764903,1.66789,58953.0,58952.0,0.1732046]
[1617327765104,1.66789,58953.0,58952.0,0.0852046]
[1617327766105,1.66789,58953.0,58952.0,0.1952046]
[1617327766305,1.49789,58953.0,58952.0,0.1952046]
[1617327766905,1.03789,58953.0,58952.0,0.1952046]
[1617327767105,0.87906718,58954.0,58952.0,0.1952046]
[1617327767304,0.87906718,58954.0,58953.0,0.254356]
[1617327767611,0.87906718,58954.0,58953.0,0.4891619]
[1617327769211,0.86906718,58954.0,58953.0,0.4891619]
[1617327772056,0.86906718,58954.0,58953.0,0.5991619]
[1617327774669,0.86906718,58954.0,58953.0,0.9875299]
[1617327776082,0.86906718,58954.0,58953.0,0.8375299]
[1617327779506,0.86906718,58954.0,58953.0,0.7275299]
[1617327779709,0.86906718,58954.0,58953.0,0.3391619]
[1617327780310,0.86906718,58954.0,58953.0,0.34174278]
[1617327780508,0.86906718,58954.0,58953.0,0.45874278]
[1617327780738,0.86906718,58954.0,58953.0,0.59374278]
[1617327781139,0.86906718,58954.0,58953.0,0.47674278]
[1617327781739,0.86906718,58954.0,58953.0,0.59374278]
[1617327782846,0.86906718,58954.0,58953.0,0.98211078]
[1617327783253,0.4914,58955.0,58954.0,9.13093282]
[1617327783452,0.4914,58955.0,58954.0,9.51930082]
[1617327783654,0.4914,58955.0,58954.0,10.51930082]
[1617327783853,0.4914,58955.0,58954.0,10.74994993]
[1617327784051,0.4914,58955.0,58954.0,10.91794993]
[1617327784252,0.49108837,58955.0,58954.0,10.91794993]
[1617327787884,0.49108837,58955.0,58954.0,10.91294993]
[1617327791637,0.49108837,58955.0,58954.0,11.02894993]
[1617327791838,0.49108837,58955.0,58954.0,11.28894993]
[1617327792641,0.49108837,58955.0,58954.0,11.07294993]
[1617327794661,0.10108837,58955.0,58954.0,11.07294993]
[1617327795065,0.45108837,58955.0,58954.0,10.91294993]
[1617327795265,0.45108837,58955.0,58954.0,10.89294993]
[1617327796063,0.45108837,58955.0,58954.0,11.20122993]
[1617327796889,0.44108837,58955.0,58954.0,11.20122993]
[1617327797088,0.43608837,58955.0,58954.0,11.20122993]
[1617327797489,0.43608837,58955.0,58954.0,11.03622993]
[1617327797761,0.43608837,58955.0,58954.0,10.89294993]
[1617327797963,0.69608837,58955.0,58954.0,10.89294993]
[1617327798762,0.43608837,58955.0,58954.0,11.05294993]
[1617327800963,0.63608837,58955.0,58954.0,11.05294993]
[1617327802165,0.43608837,58955.0,58954.0,11.05294993]
[1617327803569,0.43608837,58955.0,58954.0,10.89294993]
[1617327803972,0.73608837,58955.0,58954.0,10.50458193]
[1617327805171,0.73108837,58955.0,58954.0,10.50458193]
[1617327805370,0.73108837,58955.0,58954.0,9.50458193]
[1617327806176,1.17155837,58955.0,58954.0,9.50458193]
[1617327806774,1.68655837,58955.0,58954.0,9.50458193]
[1617327807001,1.88655837,58955.0,58954.0,9.50458193]
[1617327807399,1.68655837,58955.0,58954.0,9.50458193]
[1617327808202,1.16655837,58955.0,58954.0,9.50458193]
[1617327808805,2.85910419,58955.0,58954.0,9.50458193]
[1617327809003,4.29655837,58955.0,58954.0,9.33158193]
[1617327809400,4.85090852,58955.0,58954.0,9.18579047]
[1617327810027,4.65090852,58955.0,58954.0,9.52079047]
[1617327810224,4.85090852,58955.0,58954.0,9.52079047]
[1617327810624,2.60090852,58955.0,58954.0,9.52079047]
[1617327810826,3.13090852,58955.0,58954.0,9.52079047]
[1617327811023,2.60090852,58955.0,58954.0,9.18579047]
[1617327811425,3.46345434,58955.0,58954.0,9.18579047]
[1617327811627,3.71345434,58955.0,58954.0,9.18579047]
[1617327811825,5.08345434,58955.0,58954.0,9.18579047]
[1617327812275,4.42090852,58955.0,58954.0,9.18579047]
[1617327812480,0.05595,58995.0,58960.0,3.39228949]
[1617327812723,0.81192402,58961.0,58960.0,3.47718817]
[1617327812922,2.22192402,58961.0,58960.0,3.47718817]
[1617327813119,2.07394582,58961.0,58960.0,3.47718817]
[1617327813531,3.02394582,58961.0,58960.0,3.34228949]
[1617327813724,2.72394582,58961.0,58960.0,3.34228949]
[1617327814129,2.77394582,58961.0,58960.0,3.34228949]
[1617327814723,3.02836382,58961.0,58960.0,3.34228949]
[1617327815322,3.27836382,58961.0,58960.0,3.32228949]
[1617327815522,3.02836382,58961.0,58960.0,3.32228949]
[1617327817126,1.665818,58961.0,58960.0,3.32228949]
[1617327817327,1.4114,58961.0,58960.0,3.32228949]
[1617327817926,0.0014,58962.0,58960.0,3.52228949]
[1617327818126,0.0014,58962.0,58961.0,0.525]
[1617327818327,0.0014,58962.0,58961.0,0.08487539]
[1617327819728,0.5814,58962.0,58961.0,0.08487539]
[1617327820328,0.78988658,58962.0,58961.0,0.08487539]
[1617327820730,2.01988658,58962.0,58961.0,0.08487539]
[1617327820930,1.8114,58962.0,58961.0,0.08487539]
[1617327823751,2.2185,58962.0,58961.0,0.08487539]
[1617327824751,0.9885,58962.0,58961.0,0.08487539]
[1617327824952,0.5814,58962.0,58961.0,0.08487539]
[1617327825781,1.6914,58962.0,58961.0,0.08487539]
[1617327826379,0.5814,58962.0,58961.0,0.08487539]
[1617327826581,2.0614,58962.0,58961.0,0.06987539]
[1617327828054,0.5814,58962.0,58961.0,0.06987539]
[1617327828455,0.0014,58962.0,58961.0,0.06987539]
[1617327828659,0.0014,58962.0,58961.0,2.33776371]
[1617327828859,0.0014,58962.0,58961.0,3.68043171]
[1617327829060,0.0014,58962.0,58961.0,3.38616187]
[1617327829258,0.0014,58962.0,58961.0,3.42616187]
[1617327829656,0.0014,58962.0,58961.0,1.58616187]
[1617327829859,0.0014,58962.0,58961.0,1.08802645]
[1617327830060,0.0014,58962.0,58961.0,0.13372645]
[1617327830660,1.2814,58962.0,58961.0,0.13372645]
[1617327831258,0.0014,58962.0,58961.0,0.13372645]
[1617327831657,0.3414,58962.0,58961.0,0.13372645]
[1617327832256,0.3414,58962.0,58961.0,0.38372645]
[1617327832459,0.3414,58962.0,58961.0,0.13372645]
[1617327833462,0.0014,58962.0,58961.0,0.13372645]
[1617327833665,0.0014,58962.0,58961.0,1.56372645]
[1617327833866,0.0014,58962.0,58961.0,1.95209445]
[1617327834064,0.0014,58962.0,58961.0,2.95209445]
[1617327834466,0.0014,58962.0,58961.0,1.52209445]
[1617327835064,0.0014,58962.0,58961.0,1.13372645]
[1617327837280,0.0014,58962.0,58961.0,0.13372645]
[1617327837680,0.4014,58962.0,58961.0,0.13372645]
[1617327838511,1.6914,58962.0,58961.0,0.13372645]
[1617327838710,0.4014,58962.0,58961.0,0.13372645]
[1617327838912,0.0014,58962.0,58961.0,0.13372645]
[1617327839117,0.0014,58962.0,58961.0,0.93709445]
[1617327839315,0.0014,58962.0,58961.0,0.54872645]
[1617327839514,0.0014,58962.0,58961.0,0.52372645]
[1617327840514,0.9914,58962.0,58961.0,0.10872645]
[1617327841334,0.3814,58962.0,58961.0,0.10172645]
[1617327841933,0.3814,58962.0,58961.0,0.03787539]
[1617327842337,0.3814,58962.0,58961.0,0.45672645]
[1617327843579,0.3814,58962.0,58961.0,0.43175686]
[1617327843580,2.2814,58962.0,58961.0,0.43175686]
[1617327843801,2.2814,58962.0,58961.0,0.39287539]
[1617327843999,0.6414,58962.0,58961.0,0.39287539]
[1617327844204,0.67445154,58962.0,58961.0,0.39287539]
[1617327844401,0.3814,58962.0,58961.0,0.39287539]
[1617327844601,0.3814,58962.0,58961.0,0.71675689]
[1617327844801,0.3814,58962.0,58961.0,0.67787539]
[1617327845005,0.3814,58962.0,58961.0,0.74172645]
[1617327846201,0.3814,58962.0,58961.0,0.45672645]
[1617327846431,0.8514,58962.0,58961.0,0.43172645]
[1617327846833,1.14323932,58962.0,58961.0,0.36787539]
[1617327847032,1.20601932,58962.0,58961.0,0.01287539]
[1617327847232,1.20601932,58962.0,58961.0,0.05175797]
[1617327847430,2.03601932,58962.0,58961.0,0.05175797]
[1617327847634,2.03501932,58962.0,58961.0,0.05175797]
[1617327847831,1.20101932,58962.0,58961.0,0.01287539]
[1617327848238,1.86356514,58962.0,58961.0,0.00863539]
[1617327848437,1.86356514,58962.0,58960.0,0.35954389]
[1617327848438,3.36254582,58961.0,58960.0,0.35954389]
[1617327848637,4.66254582,58961.0,58960.0,0.32357395]
[1617327848834,4.66254582,58961.0,58960.0,0.15098506]
[1617327849055,4.66254582,58961.0,58934.0,0.15582349]
[1617327849056,3.10020258,58960.0,58933.0,0.15583085]
[1617327849252,0.32765676,58957.0,58933.0,0.15583085]
[1617327849453,0.32765676,58957.0,58931.0,0.15589296]
[1617327849454,0.0018,58948.0,58931.0,0.15589296]
[1617327849655,0.25449,58940.0,58931.0,0.15589296]
[1617327849855,0.0018,58938.0,58929.0,0.15593451]
[1617327850257,0.0018,58934.0,58923.0,0.1560845]
[1617327850649,0.0018,58934.0,58924.0,0.388368]
[1617327850851,0.0018,58934.0,58925.0,0.265]
[1617327851250,0.0018,58934.0,58923.0,0.15613654]
[1617327851450,0.0018,58934.0,58924.0,0.15613079]
[1617327851679,0.256316,58934.0,58923.0,0.15612869]
[1617327851878,0.29844684,58933.0,58923.0,0.15612869]
[1617327852078,0.29844684,58933.0,58923.0,0.49358287]
[1617327852277,0.29844684,58933.0,58924.0,0.33745418]
[1617327852480,0.29844684,58933.0,58925.0,0.155]
[1617327852681,0.29844684,58933.0,58925.0,0.49245418]
[1617327852882,0.0018,58934.0,58925.0,0.49245418]
[1617327853481,0.0018,58934.0,58925.0,0.49645418]
[1617327853880,0.94,58933.0,58926.0,0.628368]
[1617327854081,0.0018,58934.0,58926.0,0.24]
[1617327854313,0.0018,58934.0,58924.0,0.004]
[1617327855513,0.0018,58934.0,58923.0,0.004]
[1617327855914,0.0018,58934.0,58923.0,0.25848]
[1617327856113,0.002,58938.0,58929.0,0.00194395]
[1617327856510,0.002,58938.0,58930.0,0.00194385]
[1617327856936,0.002,58938.0,58931.0,0.0046881]
[1617327857137,0.29844684,58939.0,58931.0,0.0046881]
[1617327857338,0.14,58938.0,58931.0,0.0046881]
[1617327858824,0.135,58938.0,58931.0,0.0046881]
[1617327859459,0.42419684,58939.0,58931.0,0.0046881]
[1617327860062,0.29844684,58939.0,58931.0,0.0046881]
[1617327860264,0.32765676,58944.0,58934.0,0.159]
[1617327860462,0.8653,58945.0,58938.0,0.00194146]
[1617327860665,0.18,58944.0,58938.0,0.00194146]
[1617327860862,0.45607623,58944.0,58938.0,0.00194146]
[1617327861262,0.45607623,58944.0,58937.0,0.00194175]
[1617327861463,0.18,58943.0,58936.0,0.004]
[1617327862096,0.18,58943.0,58933.0,0.00194055]
[1617327862297,0.18,58943.0,58936.0,0.00469149]
[1617327862698,0.18,58942.0,58936.0,0.00469149]
[1617327863498,0.54609722,58937.0,58936.0,0.00469149]
[1617327864099,0.47878,58941.0,58936.0,0.00469149]
[1617327864299,0.329107,58945.0,58936.0,0.00469149]
[1617327864497,0.47213,58941.0,58937.0,0.175]
[1617327864908,0.47213,58941.0,58937.0,0.17]
[1617327865510,0.47213,58941.0,58938.0,0.2]
[1617327866309,0.47213,58941.0,58936.0,0.00469149]
[1617327866915,0.47213,58941.0,58933.0,0.68469149]
[1617327867327,0.46713,58941.0,58931.0,0.00194058]
[1617327867530,0.46713,58941.0,58934.0,0.00258157]
[1617327868532,0.31815086,58940.0,58934.0,0.00258157]
[1617327869133,0.254499,58939.0,58934.0,0.00258157]
[1617327871990,0.31815086,58940.0,58934.0,0.00258157]
[1617327873673,0.46713,58941.0,58934.0,0.00452408]
[1617327873868,0.002,58942.0,58934.0,0.00258157]
[1617327874464,1.14629974,58946.0,58934.0,0.00258157]
[1617327874666,2.06,58942.0,58922.0,0.41388499]
[1617327874868,2.06,58942.0,58926.0,0.004]
[1617327874869,0.002,58940.0,58926.0,0.004]
[1617327875066,0.00303724,58939.0,58926.0,0.004]
[1617327876125,0.00303724,58939.0,58923.0,0.165]
[1617327876727,0.00303724,58939.0,58925.0,0.254496]
[1617327876927,0.00303724,58939.0,58926.0,0.145]
[1617327877126,0.00303724,58939.0,58927.0,0.165]
[1617327877326,0.00303724,58939.0,58926.0,0.004]
[1617327878536,0.48945724,58939.0,58926.0,0.004]
[1617327878737,0.74395024,58939.0,58926.0,0.004]
[1617327879940,0.002,58936.0,58926.0,0.004]
[1617327881766,0.256506,58936.0,58922.0,0.33308399]
[1617327881962,0.256506,58936.0,58923.0,0.165]
[1617327882366,0.22360865,58935.0,58922.0,0.33308399]
[1617327883781,0.254517,58934.0,58922.0,0.33308399]
[1617327883980,0.22360865,58935.0,58922.0,0.33308399]
[1617327884581,0.002,58936.0,58922.0,0.33308399]
[1617327884783,0.002,58936.0,58923.0,0.15]
[1617327886409,0.002,58936.0,58923.0,0.145]
[1617327890129,0.002,58936.0,58923.0,0.19656422]
[1617327890331,0.002,58936.0,58923.0,0.145]
[1617327890530,0.002,58936.0,58924.0,0.254502]
[1617327890730,0.002,58936.0,58925.0,0.08431403]
[1617327891555,0.002,58936.0,58926.0,0.004]
[1617327891753,0.002,58936.0,58927.0,0.0843033]
[1617327891955,0.25451,58932.0,58927.0,0.0843033]
[1617327892156,0.66046,58932.0,58927.0,0.0843033]
[1617327892954,0.66046,58932.0,58927.0,0.0743033]
[1617327893155,0.66046,58932.0,58928.0,0.0841611]
[1617327893583,0.66046,58932.0,58927.0,0.08416056]
[1617327893786,0.66046,58932.0,58929.0,0.08419154]
[1617327893988,0.66046,58932.0,58928.0,0.08420154]
[1617327894188,0.87936305,58932.0,58930.0,0.08421521]
[1617327894386,0.87936305,58932.0,58923.0,0.08421011]
[1617327894387,0.21890305,58931.0,58923.0,0.08421011]
[1617327894986,0.66046,58932.0,58923.0,0.08421011]
[1617327895389,0.21841146,58931.0,58923.0,0.08421011]
[1617327895790,0.21841146,58931.0,58927.0,0.25451]
[1617327895988,0.22159619,58938.0,58927.0,0.25451]
[1617327896201,0.21855895,58938.0,58928.0,0.08424365]
[1617327897803,0.47307695,58938.0,58928.0,0.08424365]
[1617327899433,0.00303724,58940.0,58933.0,0.156]
[1617327899633,1.00099774,58957.0,58937.0,0.14255389]
[1617327899634,0.00303724,58945.0,58937.0,0.14255389]
[1617327899830,0.00303724,58955.0,58937.0,0.14655389]
[1617327900036,0.00303724,58955.0,58938.0,0.15017502]
[1617327900232,0.42727836,58935.0,58934.0,0.17]
[1617327900828,0.42727836,58935.0,58934.0,2.295]
[1617327901030,0.42727836,58935.0,58934.0,2.683368]
[1617327901234,0.37727836,58935.0,58934.0,3.28817648]
[1617327901661,0.37727836,58935.0,58934.0,3.33817648]
[1617327901862,0.33727836,58935.0,58934.0,3.33817648]
[1617327902063,0.33727836,58935.0,58934.0,3.57817648]
[1617327902963,0.33727836,58935.0,58934.0,3.61817648]
[1617327903162,0.33727836,58935.0,58934.0,3.65417648]
[1617327903765,0.33727836,58935.0,58934.0,3.69417648]
[1617327906186,0.33727836,58935.0,58934.0,3.69396854]
[1617327906808,0.33727836,58935.0,58934.0,3.80496854]
[1617327907009,0.16770036,58935.0,58934.0,3.80496854]
[1617327907211,0.16770036,58935.0,58934.0,3.91496854]
[1617327907410,0.00303724,58961.0,58935.0,2.06]
[1617327907613,0.0052,58956.0,58953.0,0.13604932]
[1617327907818,0.0004,58962.0,58960.0,0.00097457]
[1617327908012,0.0004,58962.0,58961.0,0.212]
[1617327908613,0.0004,58962.0,58961.0,0.41297423]
[1617327908812,1.1304,58962.0,58961.0,0.41297423]
[1617327909012,1.1304,58962.0,58961.0,0.412]
[1617327909439,1.1304,58962.0,58961.0,0.41564905]
[1617327909839,1.1304,58962.0,58961.0,0.41662395]
[1617327910444,1.18105456,58962.0,58961.0,0.41564905]
[1617327911342,1.1304,58962.0,58961.0,0.41760036]
[1617327912167,1.1304,58962.0,58961.0,0.41564905]
[1617327912367,0.0004,58962.0,58961.0,0.41564905]
[1617327913772,0.4304,58962.0,58961.0,0.41564905]
[1617327914372,0.0004,58962.0,58961.0,0.41564905]
[1617327914594,0.0004,58962.0,58961.0,0.00364905]
[1617327915195,0.0004,58962.0,58961.0,0.21564905]
[1617327915599,0.0004,58962.0,58961.0,0.41564905]
[1617327915794,1.5204,58962.0,58961.0,0.41564905]
[1617327916995,0.0004,58962.0,58961.0,0.41564905]
[1617327917418,0.0004,58962.0,58961.0,0.20364905]
[1617327917616,0.0004,58962.0,58961.0,0.78464905]
[1617327917817,0.0004,58962.0,58961.0,0.95964905]
[1617327918101,0.0004,58962.0,58961.0,0.38964905]
[1617327918299,0.0004,58962.0,58961.0,0.87964905]
[1617327918499,0.0004,58962.0,58961.0,0.58964905]
[1617327920150,0.0004,58962.0,58961.0,0.17864905]
[1617327920351,0.0004,58962.0,58961.0,0.00364905]
[1617327920753,0.74537288,58962.0,58961.0,0.00364905]
[1617327921351,0.94537288,58962.0,58959.0,0.25300905]
[1617327925593,1.16587452,58962.0,58959.0,0.25300905]
[1617327926594,0.94537288,58962.0,58959.0,0.25300905]
[1617327926994,0.94037288,58962.0,58959.0,0.25300905]
[1617327929023,1.14037288,58962.0,58959.0,0.25300905]
[1617327929224,1.14037288,58962.0,58959.0,0.24800905]
[1617327930024,0.94037288,58962.0,58959.0,0.24800905]
[1617327932451,0.74537288,58962.0,58960.0,0.2]
[1617327932653,0.74537288,58962.0,58960.0,0.84961]
[1617327932850,0.74537288,58962.0,58961.0,1.72477277]
[1617327933066,0.74537288,58962.0,58961.0,2.36747077]
[1617327933870,0.74537288,58962.0,58961.0,1.97910277]
[1617327934066,0.74537288,58962.0,58961.0,0.49910277]
[1617327934475,0.74537288,58962.0,58961.0,1.01910277]
[1617327934669,0.74537288,58962.0,58961.0,0.49910277]
[1617327935072,0.74537288,58962.0,58961.0,0.50168328]
[1617327935470,0.74537288,58962.0,58961.0,0.92168328]
[1617327935715,0.74537288,58962.0,58961.0,0.70168328]
[1617327936119,0.74537288,58962.0,58961.0,0.50168328]
[1617327936917,0.74537288,58962.0,58961.0,0.70168328]
[1617327937116,0.74537288,58962.0,58961.0,0.7001408]
[1617327937518,0.74537288,58962.0,58961.0,1.2601408]
[1617327937719,0.74537288,58962.0,58961.0,3.42530173]
[1617327937919,0.74537288,58962.0,58961.0,2.86530173]
[1617327938725,0.74537288,58962.0,58961.0,2.66614839]
[1617327939925,0.74537288,58962.0,58961.0,3.41166973]
[1617327940125,0.74537288,58962.0,58961.0,3.32330173]
[1617327940324,0.74537288,58962.0,58961.0,2.87414839]
[1617327940525,0.74537288,58962.0,58961.0,2.71614839]
[1617327941151,0.74537288,58962.0,58961.0,2.91530173]
[1617327941350,0.7303848,58962.0,58961.0,3.02930173]
[1617327941752,0.7303848,58962.0,58961.0,1.25062411]
[1617327942152,0.71539672,58962.0,58961.0,1.12310277]
[1617327942352,0.71539672,58962.0,58961.0,0.66310277]
[1617327943154,0.71539672,58962.0,58961.0,0.93310277]
[1617327943982,0.71539672,58962.0,58961.0,1.13225611]
[1617327944182,0.71539672,58962.0,58961.0,1.52062411]
[1617327944382,0.71539672,58962.0,58961.0,1.32147077]
[1617327944581,0.71539672,58962.0,58961.0,0.93310277]
[1617327945385,0.71539672,58962.0,58961.0,0.71310277]
[1617327945582,0.71539672,58962.0,58961.0,0.66310277]
[1617327946196,0.71539672,58962.0,58961.0,0.86225611]
[1617327947003,0.71539672,58962.0,58961.0,1.30062411]
[1617327947202,0.71539672,58962.0,58961.0,1.81223588]
[1617327947400,0.71539672,58962.0,58961.0,4.66600588]
[1617327947602,0.71539672,58962.0,58961.0,4.8115637]
[1617327948084,0.71539672,58962.0,58961.0,2.8515637]
[1617327948283,0.71539672,58962.0,58961.0,4.4815637]
[1617327949966,0.71479672,58962.0,58961.0,5.56411025]
[1617327950363,0.71479672,58962.0,58961.0,5.73411025]
[1617327950762,0.49951284,58962.0,58961.0,5.73411025]
[1617327951163,0.49951284,58962.0,58961.0,5.62411025]
[1617327951365,0.2169979,58962.0,58961.0,5.62411025]
[1617327951763,0.0884979,58962.0,58961.0,5.62411025]
[1617327951965,0.101,58963.0,58962.0,3.29987582]
[1617327952167,0.0012,58968.0,58962.0,3.29987582]
[1617327952366,0.00226387,58969.0,58968.0,2.448368]
[1617327952564,0.0004,58969.0,58968.0,2.448368]
[1617327952765,0.0014,58993.0,58969.0,2.448005]
[1617327952963,0.0014,58993.0,58969.0,3.58917741]
[1617327953564,0.00239719,58993.0,58969.0,3.58917741]
[1617327954177,0.00239719,58993.0,58969.0,3.73717741]
[1617327954378,0.00239719,58993.0,58969.0,4.17878918]
[1617327954583,0.0013992,58973.0,58970.0,3.42185328]
[1617327954787,0.0014,58993.0,58974.0,0.67994213]
[1617327954980,0.0014,58993.0,58976.0,2.30951412]
[1617327955179,0.0014,58993.0,58976.0,2.30604365]
[1617327955382,0.1741,58978.0,58977.0,2.447951]
[1617327955581,0.0004,58978.0,58977.0,1.73737626]
[1617327955785,0.0004,58978.0,58977.0,0.62760884]
[1617327956181,0.0004,58978.0,58977.0,2.35760884]
[1617327956380,0.0004,58978.0,58977.0,2.36056299]
[1617327956599,0.0004,58978.0,58977.0,2.271951]
[1617327956797,0.0004,58978.0,58977.0,2.89671842]
[1617327956997,0.0004,58978.0,58977.0,2.786951]
[1617327957597,0.0004,58978.0,58977.0,2.781951]
[1617327959424,0.0004,58978.0,58977.0,2.831951]
[1617327959825,0.0004,58978.0,58977.0,2.781951]
[1617327960034,0.0004,58978.0,58977.0,0.94891984]
[1617327960228,0.0004,58978.0,58977.0,0.947951]
[1617327960627,0.0004,58978.0,58977.0,1.28945882]
[1617327961629,0.0004,58978.0,58977.0,1.45445882]
[1617327961855,0.0004,58978.0,58977.0,1.61519573]
[1617327962055,0.0004,58978.0,58977.0,1.50445882]
[1617327962255,0.0004,58978.0,58977.0,2.90445882]
[1617327962455,0.0004,58978.0,58977.0,1.50445882]
[1617327962661,0.0004,58978.0,58977.0,1.85720882]
[1617327962856,0.0004,58978.0,58977.0,1.96697624]
[1617327963141,0.0004,58978.0,58977.0,2.68720882]
[1617327963333,0.0004,58978.0,58977.0,2.79697624]
[1617327963534,0.0004,58978.0,58977.0,2.68720882]
[1617327964135,0.0004,58978.0,58977.0,4.19092876]
[1617327964597,0.001,58988.0,58977.0,4.57254053]
[1617327964802,0.00081584,58986.0,58985.0,2.39070959]
[1617327964998,0.00081584,58986.0,58985.0,2.77862759]
[1617327965199,0.00081584,58986.0,58985.0,3.77839501]
[1617327965395,0.00081584,58986.0,58985.0,3.61539501]
[1617327965595,0.03981584,58989.0,58986.0,1.5]
[1617327965799,0.03981584,58989.0,58988.0,2.2821]
[1617327965998,0.03981584,58989.0,58988.0,1.57168062]
[1617327966197,0.03981584,58989.0,58988.0,0.6401728]
[1617327966398,0.03981584,58989.0,58988.0,0.63828811]
[1617327966596,0.03981584,58989.0,58988.0,0.77989988]
[1617327967206,0.03981584,58989.0,58988.0,0.93889988]
[1617327967405,0.03981584,58989.0,58988.0,1.09489988]
[1617327967606,0.03981584,58989.0,58988.0,1.18222523]
[1617327968409,0.03981584,58989.0,58988.0,1.45670856]
[1617327968806,0.03981584,58989.0,58988.0,1.29199265]
[1617327969007,0.03981584,58989.0,58988.0,1.34222523]
[1617327969209,0.03981584,58989.0,58988.0,1.23222523]
[1617327969410,0.03981584,58989.0,58988.0,1.78422523]
[1617327969607,0.03481584,58989.0,58988.0,1.78422523]
[1617327969831,0.03481584,58989.0,58988.0,1.95022523]
[1617327970632,0.03481584,58989.0,58988.0,2.22363271]
[1617327971031,0.03481584,58989.0,58988.0,2.45363271]
[1617327971836,0.03481584,58989.0,58988.0,2.31202094]
[1617327972034,0.03481584,58989.0,58988.0,3.15202094]
[1617327972233,0.03481584,58989.0,58988.0,2.08202094]
[1617327972453,0.03481584,58989.0,58988.0,1.59261346]
[1617327972454,1.03481584,58989.0,58988.0,1.59261346]
[1617327972653,1.03481584,58989.0,58988.0,1.121182]
[1617327972854,0.03481584,58989.0,58988.0,1.509067]
[1617327978363,0.03481584,58989.0,58988.0,1.986767]
[1617327980164,0.03481584,58989.0,58988.0,1.981767]
[1617327980568,0.03481584,58989.0,58988.0,1.97988231]
[1617327980764,0.03481584,58989.0,58988.0,2.11369101]
[1617327980967,0.03481584,58989.0,58988.0,2.1168196]
[1617327981164,0.03481584,58989.0,58988.0,2.08557528]
[1617327981966,0.03481584,58989.0,58988.0,1.9830109]
[1617327982169,0.03481584,58989.0,58988.0,0.5654259]
[1617327982369,0.03481584,58989.0,58988.0,0.321043]
[1617327982567,1.03481584,58989.0,58988.0,0.006043]
[1617327982767,1.42270084,58989.0,58988.0,0.00312859]
[1617327982970,2.64270084,58989.0,58988.0,0.00507241]
[1617327983168,2.64270084,58989.0,58988.0,0.00410058]
[1617327983367,1.46270084,58989.0,58988.0,0.00312859]
[1617327985170,1.84,58988.0,58980.0,0.22357349]
[1617327985373,0.265153,58987.0,58980.0,0.22357349]
[1617327985578,1.0,58987.0,58980.0,0.22357349]
[1617327985782,1.58823165,58986.0,58980.0,0.22357349]
[1617327985981,1.0,58985.0,58980.0,0.22357349]
[1617327986184,1.0,58985.0,58981.0,0.00257958]
[1617327986380,0.010886,58984.0,58981.0,0.00257958]
[1617327986580,0.050886,58984.0,58981.0,0.00257958]